[Event "BIH-chT Premier League 2019"]
[Site "Tuzla"]
[Date "2019.06.15"]
[Round "8.3"]
[White "Arapovic, Vitomir"]
[Black "Bogut, Zeljko"]
[Result "1/2-1/2"]
[ECO "B23"]
[WhiteElo "2315"]
[BlackElo "2403"]
[Annotator "NA"]
[PlyCount "78"]
[EventDate "2019.06.08"]
[EventType "team-tourn"]
[EventCountry "BIH"]
[SourceTitle "playchess.com"]
[Source "ChessBase"]
[SourceQuality "1"]
[TimeControl "40/5400+30:900+30"]

1. e4 {[%emt 0:00:10]} c5 {[%emt 0:00:08]} 2. Nc3 {[%emt 0:00:25]} e6 {[%emt 0:01:39]} 3. g3 {[%emt 0:02:16]} d5 {[%emt 0:02:49]} 4. d3 {[%emt 0:00:30]} Nf6 {[%emt 0:01:19]} 5. Bg2 {[%emt 0:01:11]} Be7 {[%emt 0:00:34]} 6. exd5 {[%emt 0:03:29]} exd5 {[%emt 0:01:25]} 7. Nge2 {[%emt 0:00:58]} d4 {[%emt 0:06:11]} 8. Ne4 {[%emt 0:00:49]} Nxe4 {[%emt 0:00:14]} 9. Bxe4 {[%emt 0:01:53]} Nd7 {[%emt 0:01:16]} 10. O-O {[%emt 0:00:09]} Nf6 {[%emt 0:00:08]} 11. Bg2 {[%emt 0:00:27]} h6 {[%emt 0:01:12]} 12. Nf4 {[%emt 0:10:22]} Bg4 {[%emt 0:06:09]} 13. Bf3 {[%emt 0:05:07]} Bxf3 {[%emt 0:06:14]} 14. Qxf3 {[%emt 0:00:18]} Qd7 {[%emt 0:00:21]} 15. Bd2 {[%emt 0:04:27]} O-O {[%emt 0:00:27]} 16. Rfe1 {[%emt 0:00:35]} Rfc8 {[%emt 0:05:52]} 17. b3 {[%emt 0:03:02]} Bf8 {[%emt 0:01:20]} 18. Nh5 {[%emt 0:02:31]} Nxh5 {[%emt 0:07:58]} 19. Qxh5 {[%emt 0:00:16]} b5 {[%emt 0:00:52]} 20. a4 {[%emt 0:00:50]} a6 {[%emt 0:00:28]} 21. axb5 {[%emt 0:02:52]} axb5 {[%emt 0:00:08]} 22. Qf3 {[%emt 0:00:17]} Rxa1 {[%emt 0:01:17]} 23. Rxa1 {[%emt 0:00:12]} c4 {[%emt 0:01:36]} 24. bxc4 {[%emt 0:00:25]} bxc4 {[%emt 0:00:07]} 25. Ra8 {[%emt 0:01:02]} Rxa8 {[%emt 0:05:12]} 26. Qxa8 {[%emt 0:00:15]} Qb5 {[%emt 0:00:54]} 27. dxc4 {[%emt 0:00:38]} Qxc4 {[%emt 0:00:59]} 28. Qe4 {[%emt 0:00:21]} Qc5 {[%emt 0:07:12]} 29. Qd3 {[%emt 0:03:13]} g6 {[%emt 0:05:55]} 30. c3 {[%emt 0:04:12]} Bg7 {[%emt 0:00:29]} 31. cxd4 {[%emt 0:00:18]} Bxd4 {[%emt 0:00:08]} 32. Qf3 {[%emt 0:00:15]} h5 {[%emt 0:00:37]} 33. h4 {[%emt 0:00:37]} Qe5 {[%emt 0:06:34]} 34. Kg2 {[%emt 0:00:36]} Kg7 {[%emt 0:01:04]} 35. Bf4 {[%emt 0:01:16]} Qe1 {[%emt 0:00:57]} 36. Bg5 {[%emt 0:00:47]} Qe6 {[%emt 0:02:48]} 37. Bd2 {[%emt 0:01:20]} Qe5 {[%emt 0:04:11]} 38. Bf4 {[%emt 0:02:59]} Qe1 {[%emt 0:00:42]} 39. Qd1 {[%emt 0:48:10]} Qe5 {[%emt 0:22:04]} 1/2-1/2

[Event "BIH-chT Premier League 2019"]
[Site "Tuzla"]
[Date "2019.06.15"]
[Round "8.4"]
[White "Sesar, Ivan"]
[Black "Bilic, Vladimir"]
[Result "0-1"]
[ECO "D27"]
[WhiteElo "2149"]
[BlackElo "2320"]
[Annotator "NA"]
[PlyCount "106"]
[EventDate "2019.06.08"]
[EventType "team-tourn"]
[EventCountry "BIH"]
[SourceTitle "playchess.com"]
[Source "ChessBase"]
[SourceQuality "1"]
[TimeControl "40/5400+30:900+30"]

1. d4 {[%emt 0:00:00]} d5 {[%emt 0:00:00]} 2. c4 {[%emt 0:00:00]} dxc4 {[%emt 0:00:00]} 3. e3 {[%emt 0:00:00]} e6 {[%emt 0:00:00]} 4. Bxc4 {[%emt 0:00:00]} c5 {[%emt 0:00:01]} 5. Nf3 {[%emt 0:00:00]} Nf6 {[%emt 0:00:13]} 6. O-O {[%emt 0:00:04]} Nc6 {[%emt 0:00:06]} 7. dxc5 {[%emt 0:00:09]} Bxc5 {[%emt 0:01:22]} 8. Qxd8+ {[%emt 0:00:16]} Kxd8 {[%emt 0:00:20]} 9. b3 {[%emt 0:02:45]} a6 {[%emt 0:01:19]} 10. Bb2 {[%emt 0:00:08]} Ke7 {[%emt 0:00:57]} 11. Rd1 {[%emt 0:00:40]} b5 {[%emt 0:02:56]} 12. Be2 {[%emt 0:00:07]} Bb7 {[%emt 0:01:19]} 13. Nbd2 {[%emt 0:00:50]} Rhd8 {[%emt 0:02:09]} 14. Rac1 {[%emt 0:04:59]} Ba7 {[%emt 0:04:25]} 15. Ne1 {[%emt 0:11:32]} Rd7 {[%emt 0:05:06]} 16. Ndf3 {[%emt 0:00:56]} Rxd1 {[%emt 0:03:04]} 17. Rxd1 {[%emt 0:00:44]} Bc5 {[%emt 0:10:29]} 18. Nd3 {[%emt 0:04:41]} Bd6 {[%emt 0:00:06]} 19. Rc1 {[%emt 0:00:30]} Rc8 {[%emt 0:05:51]} 20. Nc5 {[%emt 0:03:24]} Bxc5 {[%emt 0:00:22]} 21. Rxc5 {[%emt 0:00:07]} g6 {[%emt 0:00:58]} 22. Nd4 {[%emt 0:04:19]} Kd6 {[%emt 0:10:35]} 23. Rxc6+ {[%emt 0:25:59]} Bxc6 {[%emt 0:00:28]} 24. Nxc6 {[%emt 0:00:04]} Rxc6 {[%emt 0:00:10]} 25. Bxf6 {[%emt 0:00:02]} Rc2 {[%emt 0:00:32]} 26. Bf1 {[%emt 0:00:11]} Rxa2 {[%emt 0:00:42]} 27. b4 {[%emt 0:03:27]} a5 {[%emt 0:04:28]} 28. bxa5 {[%emt 0:02:21]} b4 {[%emt 0:00:19]} 29. a6 {[%emt 0:00:54]} b3 {[%emt 0:00:56]} 30. g4 {[%emt 0:16:47]} e5 {[%emt 0:02:18]} 31. f4 {[%emt 0:00:50]} exf4 {[%emt 0:00:13]} 32. Bc4 {[%emt 0:09:30]} fxe3 {[%emt 0:00:41]} 33. Bxb3 {[%emt 0:00:54]} Rxa6 {[%emt 0:00:15]} 34. Bxf7 {[%emt 0:02:25]} Ra4 {[%emt 0:00:17]} 35. Bh4 {[%emt 0:05:59]} Ra1+ {[%emt 0:01:31]} 36. Kg2 {[%emt 0:00:20]} e2 {[%emt 0:00:06]} 37. Bg8 {[%emt 0:00:53]} h6 {[%emt 0:01:08]} 38. Bg3+ {[%emt 0:01:21]} Ke7 {[%emt 0:00:29]} 39. g5 {[%emt 0:00:19]} hxg5 {[%emt 0:00:36]} 40. Bc4 {[%emt 0:00:00]} e1=Q {[%emt 0:00:00]} 41. Bxe1 {[%emt 0:00:33]} Rxe1 {[%emt 0:00:33]} 42. Kf2 {[%emt 0:00:40]} Rd1 {[%emt 0:01:01]} 43. Kg3 {[%emt 0:00:27]} Kf6 {[%emt 0:00:07]} 44. Bb5 {[%emt 0:00:22]} Rg1+ {[%emt 0:00:19]} 45. Kf2 {[%emt 0:00:13]} Rb1 {[%emt 0:00:49]} 46. Be8 {[%emt 0:00:19]} g4 {[%emt 0:00:35]} 47. Ba4 {[%emt 0:00:15]} Kg5 {[%emt 0:00:26]} 48. Kg3 {[%emt 0:00:29]} Re1 {[%emt 0:01:21]} 49. Bd7 {[%emt 0:00:39]} Re3+ {[%emt 0:00:18]} 50. Kf2 {[%emt 0:00:14]} Re7 {[%emt 0:00:04]} 51. Bb5 {[%emt 0:00:17]} Kf4 {[%emt 0:00:15]} 52. Bd3 {[%emt 0:00:31]} g5 {[%emt 0:00:19]} 53. Kg2 {[%emt 0:00:12]} Re3 {[%emt 0:58:36]} 0-1

[Event "BIH-chT Premier League 2019"]
[Site "Tuzla"]
[Date "2019.06.15"]
[Round "8.5"]
[White "Sinanovic, Muhamed"]
[Black "Jelcic, Marko"]
[Result "1-0"]
[ECO "A07"]
[WhiteElo "2313"]
[BlackElo "2120"]
[Annotator "NA"]
[PlyCount "107"]
[EventDate "2019.06.08"]
[EventType "team-tourn"]
[EventCountry "BIH"]
[SourceTitle "playchess.com"]
[Source "ChessBase"]
[SourceQuality "1"]
[TimeControl "40/5400+30:900+30"]

1. Nf3 {[%emt 0:00:00]} d5 {[%emt 0:00:07]} 2. g3 {[%emt 0:00:51]} Nf6 {[%emt 0:00:14]} 3. Bg2 {[%emt 0:00:10]} Bf5 {[%emt 0:02:54]} 4. O-O {[%emt 0:01:37]} c6 {[%emt 0:00:38]} 5. d3 {[%emt 0:01:53]} h6 {[%emt 0:03:26]} 6. Nbd2 {[%emt 0:00:53]} Nbd7 {[%emt 0:01:44]} 7. b3 {[%emt 0:01:31]} e6 {[%emt 0:04:32]} 8. Bb2 {[%emt 0:00:36]} Be7 {[%emt 0:01:01]} 9. e4 {[%emt 0:02:10]} dxe4 {[%emt 0:02:18]} 10. dxe4 {[%emt 0:00:20]} Bh7 {[%emt 0:04:00]} 11. Qe2 {[%emt 0:05:04]} O-O {[%emt 0:03:42]} 12. Rfd1 {[%emt 0:10:22]} Qc7 {[%emt 0:06:09]} 13. a3 {[%emt 0:10:28]} a5 {[%emt 0:08:28]} 14. Rac1 {[%emt 0:06:17]} Rfd8 {[%emt 0:02:04]} 15. e5 {[%emt 0:01:39]} Nd5 {[%emt 0:02:16]} 16. Ne4 {[%emt 0:04:03]} N5b6 {[%emt 0:09:51]} 17. h3 {[%emt 0:07:05]} Nc5 {[%emt 0:01:05]} 18. Nfd2 {[%emt 0:00:47]} Nxe4 {[%emt 0:02:51]} 19. Nxe4 {[%emt 0:00:10]} Rxd1+ {[%emt 0:01:02]} 20. Rxd1 {[%emt 0:00:21]} Rd8 {[%emt 0:00:25]} 21. Kh2 {[%emt 0:04:33]} Rxd1 {[%emt 0:04:38]} 22. Qxd1 {[%emt 0:00:07]} Qd7 {[%emt 0:02:20]} 23. Qe2 {[%emt 0:02:20]} Qd8 {[%emt 0:02:31]} 24. f4 {[%emt 0:04:46]} Qd7 {[%emt 0:07:04]} 25. Qf2 {[%emt 0:05:41]} Qc7 {[%emt 0:08:28]} 26. Qd4 {[%emt 0:07:23]} c5 {[%emt 0:07:00]} 27. Qc3 {[%emt 0:05:04]} c4 {[%emt 0:02:41]} 28. Nd6 {[%emt 0:02:37]} Qc5 {[%emt 0:06:04]} 29. Qd4 {[%emt 0:04:57]} Qc7 {[%emt 0:02:33]} 30. bxc4 {[%emt 0:06:59]} Bxc2 {[%emt 0:01:13]} 31. Qc3 {[%emt 0:00:30]} Bg6 {[%emt 0:01:18]} 32. Qxa5 {[%emt 0:00:11]} Bd8 {[%emt 0:00:41]} 33. c5 {[%emt 0:01:42]} Nd5 {[%emt 0:00:33]} 34. Qxc7 {[%emt 0:00:46]} Bxc7 {[%emt 0:00:01]} 35. Nxb7 {[%emt 0:00:10]} Kf8 {[%emt 0:00:13]} 36. Nd6 {[%emt 0:00:45]} Bd3 {[%emt 0:00:36]} 37. Bf3 {[%emt 0:01:25]} Ke7 {[%emt 0:00:16]} 38. Kg2 {[%emt 0:00:21]} f5 {[%emt 0:00:32]} 39. Kf2 {[%emt 0:01:03]} g6 {[%emt 0:01:02]} 40. Be2 {[%emt 0:00:00]} Bc2 {[%emt 0:00:00]} 41. Bb5 {[%emt 0:01:33]} g5 {[%emt 0:00:56]} 42. fxg5 {[%emt 0:01:50]} hxg5 {[%emt 0:00:01]} 43. Bc1 {[%emt 0:00:06]} f4 {[%emt 0:00:23]} 44. Bd2 {[%emt 0:01:54]} Bb8 {[%emt 0:01:11]} 45. a4 {[%emt 0:00:53]} Kf8 {[%emt 0:00:26]} 46. gxf4 {[%emt 0:01:59]} gxf4 {[%emt 0:00:07]} 47. c6 {[%emt 0:01:29]} Ba7+ {[%emt 0:01:21]} 48. Kf1 {[%emt 0:01:24]} Bd4 {[%emt 0:00:49]} 49. Bxf4 {[%emt 0:00:14]} Kg7 {[%emt 0:01:58]} 50. Ne8+ {[%emt 0:01:15]} Kg6 {[%emt 0:00:33]} 51. c7 {[%emt 0:00:05]} Nb6 {[%emt 0:00:08]} 52. Nd6 {[%emt 0:00:58]} Bc3 {[%emt 0:00:29]} 53. Bg3 {[%emt 0:01:44]} Bf5 {[%emt 0:00:43]} 54. Kg2 {[%emt 0:00:39]} 1-0

[Event "BIH-chT Premier League 2019"]
[Site "Tuzla"]
[Date "2019.06.15"]
[Round "8.6"]
[White "Sesar, Dario"]
[Black "Narancic, Vlado"]
[Result "0-1"]
[ECO "B22"]
[WhiteElo "1989"]
[BlackElo "2288"]
[Annotator "NA"]
[PlyCount "98"]
[EventDate "2019.06.08"]
[EventType "team-tourn"]
[EventCountry "BIH"]
[SourceTitle "playchess.com"]
[Source "ChessBase"]
[SourceQuality "1"]
[TimeControl "40/5400+30:900+30"]

1. e4 {[%emt 0:00:00]} c5 {[%emt 0:01:52]} 2. c3 {[%emt 0:00:00]} d6 {[%emt 0:00:13]} 3. d4 {[%emt 0:00:06]} cxd4 {[%emt 0:00:07]} 4. cxd4 {[%emt 0:00:07]} Nf6 {[%emt 0:00:05]} 5. Nc3 {[%emt 0:00:17]} a6 {[%emt 0:00:07]} 6. Nf3 {[%emt 0:01:09]} g6 {[%emt 0:00:23]} 7. Be2 {[%emt 0:04:41]} Bg7 {[%emt 0:00:06]} 8. O-O {[%emt 0:00:20]} O-O {[%emt 0:00:02]} 9. h3 {[%emt 0:03:01]} b5 {[%emt 0:00:57]} 10. e5 {[%emt 0:06:32]} Ne8 {[%emt 0:00:15]} 11. Bg5 {[%emt 0:11:58]} Bb7 {[%emt 0:02:02]} 12. Qb3 {[%emt 0:10:38]} Nc6 {[%emt 0:08:48]} 13. Rfd1 {[%emt 0:07:31]} Kh8 {[%emt 0:05:08]} 14. a3 {[%emt 0:10:23]} Rc8 {[%emt 0:02:47]} 15. Qa2 {[%emt 0:05:58]} h6 {[%emt 0:07:56]} 16. Bh4 {[%emt 0:00:36]} Na5 {[%emt 0:01:50]} 17. Nd5 {[%emt 0:02:45]} g5 {[%emt 0:03:02]} 18. Bg3 {[%emt 0:00:45]} Nc4 {[%emt 0:05:49]} 19. Bxc4 {[%emt 0:03:58]} bxc4 {[%emt 0:06:32]} 20. Ne3 {[%emt 0:00:40]} Qd7 {[%emt 0:02:29]} 21. d5 {[%emt 0:04:37]} f5 {[%emt 0:03:16]} 22. exf6 {[%emt 0:03:05]} Nxf6 {[%emt 0:00:34]} 23. Rac1 {[%emt 0:01:13]} c3 {[%emt 0:00:44]} 24. b4 {[%emt 0:06:34]} Ne4 {[%emt 0:03:27]} 25. Qc2 {[%emt 0:02:03]} Nxg3 {[%emt 0:00:41]} 26. fxg3 {[%emt 0:00:02]} e6 {[%emt 0:00:16]} 27. Qd3 {[%emt 0:04:07]} Rfe8 {[%emt 0:07:21]} 28. Kh2 {[%emt 0:02:25]} exd5 {[%emt 0:07:19]} 29. Nxd5 {[%emt 0:00:45]} Qc6 {[%emt 0:00:09]} 30. Qg6 {[%emt 0:01:37]} Rf8 {[%emt 0:04:26]} 31. Ne7 {[%emt 0:01:48]} Qe4 {[%emt 0:00:02]} 32. Qxe4 {[%emt 0:00:35]} Bxe4 {[%emt 0:00:01]} 33. Nxc8 {[%emt 0:00:11]} Rxc8 {[%emt 0:00:00]} 34. Rxd6 {[%emt 0:01:25]} c2 {[%emt 0:06:04]} 35. Nd4 {[%emt 0:02:06]} Be5 {[%emt 0:01:08]} 36. Rd7 {[%emt 0:01:25]} Rc3 {[%emt 0:01:39]} 37. Re7 {[%emt 0:01:55]} Bxg3+ {[%emt 0:01:09]} 38. Kh1 {[%emt 0:00:00]} Bf4 {[%emt 0:05:45]} 39. Rxe4 {[%emt 0:00:57]} Bxc1 {[%emt 0:00:04]} 40. Re2 {[%emt 0:00:00]} Bd2 {[%emt 0:00:00]} 41. Nxc2 {[%emt 0:04:01]} Rxc2 {[%emt 0:02:51]} 42. g4 {[%emt 0:00:36]} a5 {[%emt 0:03:00]} 43. Kg2 {[%emt 0:03:04]} axb4 {[%emt 0:00:41]} 44. axb4 {[%emt 0:00:02]} Rb2 {[%emt 0:00:45]} 45. Kf3 {[%emt 0:05:48]} Rb3+ {[%emt 0:00:16]} 46. Ke4 {[%emt 0:00:22]} Bxb4 {[%emt 0:00:21]} 47. Kf5 {[%emt 0:00:22]} Kg7 {[%emt 0:00:55]} 48. h4 {[%emt 0:00:55]} Rf3+ {[%emt 0:00:15]} 49. Ke6 {[%emt 0:00:13]} gxh4 {[%emt 0:00:02]} 0-1

[Event "BIH-chT Premier League 2019"]
[Site "Tuzla"]
[Date "2019.06.15"]
[Round "8.7"]
[White "Savic, Miodrag R"]
[Black "Sedlak, Nikola"]
[Result "1/2-1/2"]
[ECO "B12"]
[WhiteElo "2503"]
[BlackElo "2583"]
[Annotator "ChessBase"]
[PlyCount "65"]
[EventDate "2019.06.08"]
[EventType "team-tourn"]
[EventCountry "BIH"]
[SourceTitle "playchess.com"]
[Source "ChessBase"]
[SourceQuality "1"]
[TimeControl "40/5400+30:900+30"]

1. e4 {[%emt 0:00:00]} c6 {[%emt 0:00:00]} 2. d4 {[%emt 0:00:35]} d5 {[%emt 0:00:00]} 3. e5 {[%emt 0:01:05]} c5 {[%emt 0:00:31]} 4. dxc5 {[%emt 0:02:19]} e6 {[%emt 0:00:29]} 5. a3 {[%emt 0:02:13]} Bxc5 {[%emt 0:00:15]} 6. b4 {[%emt 0:01:44]} Bb6 {[%emt 0:00:22]} 7. Qg4 {[%emt 0:05:59]} Ne7 {[%emt 0:05:09]} 8. Nf3 {[%emt 0:01:53]} Ng6 {[%emt 0:02:36]} 9. Bd3 {[%emt 0:04:29]} f5 {[%emt 0:02:55]} 10. exf6 {[%emt 0:08:02]} Qxf6 {[%emt 0:01:05]} 11. O-O {[%emt 0:05:29]} O-O {[%emt 0:00:43]} 12. Qh5 {[%emt 0:02:54]} Nd7 {[%emt 0:07:29]} 13. Ra2 {[%emt 0:02:49]} Qf7 {[%emt 0:13:47]} 14. c4 {[%emt 0:07:05]} dxc4 {[%emt 0:05:25]} 15. Bxg6 {[%emt 0:08:43]} Qxg6 {[%emt 0:00:16]} 16. Qxg6 {[%emt 0:00:28]} hxg6 {[%emt 0:00:09]} 17. Nbd2 {[%emt 0:00:20]} c3 {[%emt 0:05:23]} 18. Ne4 {[%emt 0:01:04]} Nf6 {[%emt 0:00:07]} 19. Nxc3 {[%emt 0:01:39]} Bd7 {[%emt 0:00:10]} 20. Rd2 {[%emt 0:05:17]} a5 {[%emt 0:10:05]} 21. Ne5 {[%emt 0:02:08]} axb4 {[%emt 0:00:43]} 22. axb4 {[%emt 0:00:20]} Rfd8 {[%emt 0:06:09]} 23. Nxd7 {[%emt 0:05:35]} Rxd7 {[%emt 0:00:14]} 24. Rxd7 {[%emt 0:00:22]} Nxd7 {[%emt 0:00:10]} 25. Re1 {[%emt 0:02:54]} Kf7 {[%emt 0:02:41]} 26. Ne4 {[%emt 0:01:46]} Ra2 {[%emt 0:01:16]} 27. Ng5+ {[%emt 0:09:01]} Kf6 {[%emt 0:03:39]} 28. Rxe6+ {[%emt 0:04:21]} Kf5 {[%emt 0:00:15]} 29. h3 {[%emt 0:00:46]} Bxf2+ {[%emt 0:00:13]} 30. Kh2 {[%emt 0:03:58]} Bh4 {[%emt 0:00:21]} 31. Re7 {[%emt 0:02:30]} Bxg5 {[%emt 0:01:03]} 32. Bxg5 {[%emt 0:00:28]} Ne5 {[%emt 0:00:47]} 33. Be3 {[%emt 0:03:16]} 1/2-1/2

[Event "BIH-chT Premier League 2019"]
[Site "Tuzla"]
[Date "2019.06.15"]
[Round "8.8"]
[White "Djukic, Nikola"]
[Black "Cvitan, Ognjen"]
[Result "1/2-1/2"]
[ECO "B78"]
[WhiteElo "2547"]
[BlackElo "2490"]
[Annotator "ChessBase"]
[PlyCount "81"]
[EventDate "2019.06.08"]
[EventType "team-tourn"]
[EventCountry "BIH"]
[SourceTitle "playchess.com"]
[Source "ChessBase"]
[SourceQuality "1"]
[TimeControl "40/5400+30:900+30"]

1. e4 {[%emt 1:30:30]} c5 {[%emt 1:30:30]} 2. Nf3 {[%emt 0:00:30]} d6 {[%emt 0:00:30]} 3. d4 {[%emt 0:00:30]} cxd4 {[%emt 0:00:30]} 4. Nxd4 {[%emt 0:00:30]} Nf6 {[%emt 0:00:30]} 5. Nc3 {[%emt 0:00:30]} g6 {[%emt 0:00:30]} 6. Be3 {[%emt 0:00:30]} Bg7 {[%emt 0:00:30]} 7. f3 {[%emt 0:00:30]} Nc6 {[%emt 0:00:30]} 8. Qd2 {[%emt 0:00:30]} O-O {[%emt 0:00:30]} 9. Bc4 {[%emt 0:00:30]} Bd7 {[%emt 0:00:30]} 10. h4 {[%emt 0:00:30]} Ne5 {[%emt 0:00:30]} 11. Bb3 {[%emt 0:00:30]} h5 {[%emt 0:00:30]} 12. O-O-O {[%emt 0:00:30]} Rc8 {[%emt 0:00:30]} 13. Bg5 {[%emt 0:00:30]} Rc5 {[%emt 0:00:30]} 14. Kb1 {[%emt 0:00:30]} Re8 {[%emt 0:00:30]} 15. Bh6 {[%emt 0:00:30]} Nc4 {[%emt 0:00:30]} 16. Bxc4 {[%emt 0:00:30]} Rxc4 {[%emt 0:00:30]} 17. Bxg7 {[%emt 0:00:30]} Kxg7 {[%emt 0:00:30]} 18. Nd5 {[%emt 0:00:30]} Nxd5 {[%emt 0:00:30]} 19. exd5 {[%emt 0:00:30]} a5 {[%emt 0:00:30]} 20. g4 {[%emt 0:00:30]} Rh8 {[%emt 0:00:30]} 21. b3 {[%emt 0:00:30]} Rc5 {[%emt 0:00:30]} 22. Ne2 {[%emt 0:00:30]} Kg8 {[%emt 0:00:30]} 23. Ng3 {[%emt 0:00:30]} f6 {[%emt 0:00:30]} 24. gxh5 {[%emt 0:00:30]} gxh5 {[%emt 0:00:30]} 25. Rhg1 {[%emt 0:00:30]} Kf7 {[%emt 0:00:30]} 26. Ne4 {[%emt 0:00:30]} Rc8 {[%emt 0:00:30]} 27. Qd3 {[%emt 0:00:30]} Kf8 {[%emt 0:00:30]} 28. Ng3 {[%emt 0:00:30]} Qc7 {[%emt 0:00:30]} 29. Ne2 {[%emt 0:00:30]} Ke8 {[%emt 0:00:30]} 30. Rg7 {[%emt 0:00:30]} Kd8 {[%emt 0:00:30]} 31. Nd4 {[%emt 0:00:30]} Re8 {[%emt 0:00:30]} 32. Re1 {[%emt 0:00:30]} Qc3 {[%emt 0:00:30]} 33. Qxc3 {[%emt 0:00:30]} Rxc3 {[%emt 0:00:30]} 34. Rh7 {[%emt 0:00:30]} Rc5 {[%emt 0:00:30]} 35. c4 {[%emt 0:00:30]} b5 {[%emt 0:00:30]} 36. Rc1 {[%emt 0:00:30]} bxc4 {[%emt 0:00:30]} 37. bxc4 {[%emt 0:00:30]} e5 {[%emt 0:00:30]} 38. dxe6 {[%emt 0:00:30]} Bxe6 {[%emt 0:00:30]} 39. Nxe6+ {[%emt 0:00:30]} Rxe6 {[%emt 0:00:30]} 40. Ra7 {[%emt 0:00:30]} Re7 {[%emt 0:00:30]} 41. Ra8+ {[%emt 0:15:30]} 1/2-1/2

[Event "BIH-chT Premier League 2019"]
[Site "Tuzla"]
[Date "2019.06.15"]
[Round "8.9"]
[White "Jakovljevic, Vlado"]
[Black "Kadric, Denis"]
[Result "0-1"]
[ECO "A41"]
[WhiteElo "2360"]
[BlackElo "2550"]
[Annotator "ChessBase"]
[PlyCount "84"]
[EventDate "2019.06.08"]
[EventType "team-tourn"]
[EventCountry "BIH"]
[SourceTitle "playchess.com"]
[Source "ChessBase"]
[SourceQuality "1"]
[TimeControl "40/5400+30:900+30"]

1. Nf3 {[%emt 1:30:30]} g6 {[%emt 1:30:30]} 2. d4 {[%emt 0:00:30]} Bg7 {[%emt 0:00:30]} 3. c4 {[%emt 0:00:30]} d6 {[%emt 0:00:30]} 4. Nc3 {[%emt 0:00:30]} Bg4 {[%emt 0:00:30]} 5. e3 {[%emt 0:00:30]} Nc6 {[%emt 0:00:30]} 6. Be2 {[%emt 0:00:30]} e5 {[%emt 0:00:30]} 7. d5 {[%emt 0:00:30]} Nce7 {[%emt 0:00:30]} 8. e4 {[%emt 0:00:30]} c5 {[%emt 0:00:30]} 9. O-O {[%emt 0:00:30]} Nf6 {[%emt 0:00:30]} 10. Ne1 {[%emt 0:00:30]} Bxe2 {[%emt 0:00:30]} 11. Qxe2 {[%emt 0:00:30]} O-O {[%emt 0:00:30]} 12. Nd3 {[%emt 0:00:30]} Nd7 {[%emt 0:00:30]} 13. f4 {[%emt 0:00:30]} exf4 {[%emt 0:00:30]} 14. Bxf4 {[%emt 0:00:30]} Nb6 {[%emt 0:00:30]} 15. Rac1 {[%emt 0:00:30]} Nxc4 {[%emt 0:00:30]} 16. Nxc5 {[%emt 0:00:30]} Ne5 {[%emt 0:00:30]} 17. Nd3 {[%emt 0:00:30]} Nc8 {[%emt 0:00:30]} 18. Nxe5 {[%emt 0:00:30]} dxe5 {[%emt 0:00:30]} 19. Be3 {[%emt 0:00:30]} Nd6 {[%emt 0:00:30]} 20. Bc5 {[%emt 0:00:30]} Bh6 {[%emt 0:00:30]} 21. Rc2 {[%emt 0:00:30]} a6 {[%emt 0:00:30]} 22. Kh1 {[%emt 0:00:30]} Rc8 {[%emt 0:00:30]} 23. Bg1 {[%emt 0:00:30]} b5 {[%emt 0:00:30]} 24. Qd3 {[%emt 0:00:30]} b4 {[%emt 0:00:30]} 25. Na4 {[%emt 0:00:30]} Rxc2 {[%emt 0:00:30]} 26. Qxc2 {[%emt 0:00:30]} Qh4 {[%emt 0:00:30]} 27. Nc5 {[%emt 0:00:30]} f5 {[%emt 0:00:30]} 28. exf5 {[%emt 0:00:30]} Nxf5 {[%emt 0:00:30]} 29. Ne4 {[%emt 0:00:30]} Be3 {[%emt 0:00:30]} 30. Qd3 {[%emt 0:00:30]} Kg7 {[%emt 0:00:30]} 31. g3 {[%emt 0:00:30]} Qh3 {[%emt 0:00:30]} 32. Qe2 {[%emt 0:00:30]} Nd4 {[%emt 0:00:30]} 33. Qxe3 {[%emt 0:00:30]} Qxf1 {[%emt 0:00:30]} 34. Nc5 {[%emt 0:00:30]} Nf3 {[%emt 0:00:30]} 35. Ne6+ {[%emt 0:00:30]} Kg8 {[%emt 0:00:30]} 36. Nxf8 {[%emt 0:00:30]} Nxg1 {[%emt 0:00:30]} 37. Qxg1 {[%emt 0:00:30]} Qf3+ {[%emt 0:00:30]} 38. Qg2 {[%emt 0:00:30]} Qd1+ {[%emt 0:00:30]} 39. Qg1 {[%emt 0:00:30]} Qxd5+ {[%emt 0:00:30]} 40. Qg2 {[%emt 0:00:30]} Qd1+ {[%emt 0:00:30]} 41. Qg1 {[%emt 0:15:30]} Qxg1+ {[%emt 0:15:30]} 42. Kxg1 {[%emt 0:00:30]} Kxf8 {[%emt 0:00:30]} 0-1

[Event "BIH-chT Premier League 2019"]
[Site "Tuzla"]
[Date "2019.06.15"]
[Round "8.10"]
[White "Stojanovic, Dalibor"]
[Black "Vlatkovic, Milos"]
[Result "1/2-1/2"]
[ECO "C24"]
[WhiteElo "2507"]
[BlackElo "2312"]
[Annotator "ChessBase"]
[PlyCount "63"]
[EventDate "2019.06.08"]
[EventType "team-tourn"]
[EventCountry "BIH"]
[SourceTitle "playchess.com"]
[Source "ChessBase"]
[SourceQuality "1"]
[TimeControl "40/5400+30:900+30"]

1. e4 {[%emt 1:30:30]} e5 {[%emt 1:30:30]} 2. Bc4 {[%emt 0:00:30]} Nf6 {[%emt 0:00:30]} 3. d3 {[%emt 0:00:30]} c6 {[%emt 0:00:30]} 4. Nf3 {[%emt 0:00:30]} d5 {[%emt 0:00:30]} 5. Bb3 {[%emt 0:00:30]} Bb4+ {[%emt 0:00:30]} 6. Bd2 {[%emt 0:00:30]} Bxd2+ {[%emt 0:00:30]} 7. Nbxd2 {[%emt 0:00:30]} a5 {[%emt 0:00:30]} 8. a4 {[%emt 0:00:30]} Bg4 {[%emt 0:00:30]} 9. h3 {[%emt 0:00:30]} Bxf3 {[%emt 0:00:30]} 10. Qxf3 {[%emt 0:00:30]} O-O {[%emt 0:00:30]} 11. O-O {[%emt 0:00:30]} dxe4 {[%emt 0:00:30]} 12. Nxe4 {[%emt 0:00:30]} Nxe4 {[%emt 0:00:30]} 13. Qxe4 {[%emt 0:00:30]} Nd7 {[%emt 0:00:30]} 14. Qe3 {[%emt 0:00:30]} Re8 {[%emt 0:00:30]} 15. Rae1 {[%emt 0:00:30]} Nf6 {[%emt 0:00:30]} 16. Re2 {[%emt 0:00:30]} e4 {[%emt 0:00:30]} 17. d4 {[%emt 0:00:30]} Nd5 {[%emt 0:00:30]} 18. Qg3 {[%emt 0:00:30]} Qb6 {[%emt 0:00:30]} 19. c4 {[%emt 0:00:30]} Nf6 {[%emt 0:00:30]} 20. Qc3 {[%emt 0:00:30]} Rad8 {[%emt 0:00:30]} 21. Rd1 {[%emt 0:00:30]} Rd7 {[%emt 0:00:30]} 22. Bc2 {[%emt 0:00:30]} Red8 {[%emt 0:00:30]} 23. Red2 {[%emt 0:00:30]} h6 {[%emt 0:00:30]} 24. b3 {[%emt 0:00:30]} Kf8 {[%emt 0:00:30]} 25. Qe3 {[%emt 0:00:30]} Re8 {[%emt 0:00:30]} 26. Qc3 {[%emt 0:00:30]} Red8 {[%emt 0:00:30]} 27. Qe3 {[%emt 0:00:30]} Re8 {[%emt 0:00:30]} 28. Kh1 {[%emt 0:00:30]} Kg8 {[%emt 0:00:30]} 29. g4 {[%emt 0:00:30]} Red8 {[%emt 0:00:30]} 30. Kg2 {[%emt 0:00:30]} Kh8 {[%emt 0:00:30]} 31. Kh1 {[%emt 0:00:30]} Kg8 {[%emt 0:00:30]} 32. Kg2 {[%emt 0:00:30]} 1/2-1/2